fUST/lending_fUST_20250902
["ID","MTS","AMOUNT","RATE_DAILY","PERIOD"]
[383043730,1756827043112,-480.0,0.00016438,2]
[383043731,1756827043120,-577.95,0.00016438,2]
[383043732,1756827043129,-840.81,0.00016438,2]
[383043733,1756827043138,-480.0,0.00016438,2]
[383043734,1756827043146,-480.0,0.00016438,2]
[383043735,1756827043155,-480.0,0.00016438,2]
[383043736,1756827043164,-480.0,0.00016438,2]
[383043737,1756827043173,-480.0,0.00016438,2]
[383043738,1756827043182,-480.0,0.00016438,2]
[383043739,1756827043191,-500.0,0.00016438,2]
[383043740,1756827043201,-295.0220105,0.00016438,2]
[383043741,1756827043212,-153.0,0.00016438,2]
[383043742,1756827043222,-583.0233772,0.00016438,2]
[383043743,1756827043232,-161.4210731,0.00016438,2]
[383043744,1756827043241,-153.0,0.00016438,2]
[383043745,1756827043251,-161.4210731,0.00016438,2]
[383043746,1756827043260,-583.0233772,0.00016438,2]
[383043747,1756827043270,-153.0,0.00016438,2]
[383043748,1756827043280,-295.0220105,0.00016438,2]
[383043749,1756827043289,-161.4210731,0.00016438,2]
[383043750,1756827043299,-295.0220105,0.00016438,2]
[383043751,1756827043308,-153.0,0.00016438,2]
[383043752,1756827043318,-583.0233772,0.00016438,2]
[383043753,1756827043327,-161.4210731,0.00016438,2]
[383043754,1756827043337,-295.0220105,0.00016438,2]
[383043755,1756827043346,-161.4210731,0.00016438,2]
[383043756,1756827043357,-295.0220105,0.00016438,2]
[383043757,1756827043369,-161.4210731,0.00016438,2]
[383043758,1756827043378,-563.6622803,0.00016438,2]
[383043760,1756827043388,-161.4210731,0.00016438,2]
[383043761,1756827043398,-161.4210731,0.00016438,2]
[383043762,1756827043408,-159.1555109,0.00016438,2]
[383043763,1756827043418,-2500.0,0.00016664,2]
[383043764,1756827043428,-2500.0,0.00016664,2]
[383043765,1756827043438,-2500.0,0.00016664,2]
[383043766,1756827043448,-2500.0,0.00016664,2]
[383043767,1756827043458,-827.76,0.00016712,2]
[383043768,1756827043468,-736.65,0.00016712,2]
[383043769,1756827043477,-480.0,0.00016712,2]
[383043770,1756827043491,-577.95,0.00016712,2]
[383043771,1756827043500,-840.81,0.00016712,2]
[383043772,1756827043510,-480.0,0.00016712,2]
[383043773,1756827043520,-480.0,0.00016712,2]
[383043774,1756827043529,-480.0,0.00016712,2]
[383043775,1756827043539,-480.0,0.00016712,2]
[383043776,1756827043549,-434.79743898,0.00016712,2]
[383043777,1756827043559,-480.0,0.00016712,2]
[383043778,1756827043568,-3000.0,0.0001678,2]
[383043779,1756827043578,-260.0,0.00016835,2]
[383043780,1756827043587,-352.0,0.00016973,2]
[383043782,1756827043597,-151.0,0.00016986,2]
[383043783,1756827043607,-500.0,0.00016986,2]
[383043784,1756827043617,-827.76,0.00016986,2]
[383043785,1756827043626,-736.65,0.00016986,2]
[383043786,1756827043639,-480.0,0.00016986,2]
[383043787,1756827043648,-577.95,0.00016986,2]
[383043788,1756827043657,-840.81,0.00016986,2]
[383043790,1756827043667,-480.0,0.00016986,2]
[383043791,1756827043677,-480.0,0.00016986,2]
[383043792,1756827043688,-480.0,0.00016986,2]
[383043793,1756827043698,-480.0,0.00016986,2]
[383043794,1756827043709,-480.0,0.00016986,2]
[383043795,1756827043719,-417.15472785,0.00017,7]
[383043796,1756827043728,-417.15472785,0.00017,7]
[383043797,1756827043737,-160.0,0.00017,7]
[383043798,1756827043747,-160.0,0.00017,7]
[383043799,1756827043757,-530.22964562,0.00017,7]
[383043800,1756827043766,-151.0,0.000171,2]
[383043801,1756827043774,-412.0,0.00017124,2]
[383043802,1756827043782,-154.482071,0.00017169,2]
[383043803,1756827043791,-906.26997259,0.000172,2]
[383043804,1756827043800,-2261.66380389,0.00017212,2]
[383043805,1756827043810,-3000.0,0.00017212,2]
[383043806,1756827043821,-3000.0,0.00017212,2]
[383043807,1756827043831,-3000.0,0.00017212,2]
[383043808,1756827043842,-151.0,0.0001726,2]
[383043809,1756827043853,-500.0,0.0001726,2]
[383043810,1756827043862,-541.42,0.0001726,2]
[383043811,1756827043871,-827.76,0.0001726,2]
[383043812,1756827043881,-736.65,0.0001726,2]
[383043813,1756827043891,-480.0,0.0001726,2]
[383043814,1756827043901,-577.95,0.0001726,2]
[383043815,1756827043912,-840.81,0.0001726,2]
[383043816,1756827043923,-480.0,0.0001726,2]
[383043817,1756827043934,-454.56160238,0.0001726,2]
[383043818,1756827043944,-480.0,0.0001726,2]
[383043819,1756827043954,-480.0,0.0001726,2]
[383043820,1756827043966,-480.0,0.0001726,2]
[383043821,1756827043979,-309.0,0.000173,2]
[383043822,1756827043991,-360.0,0.00017383,2]
[383043823,1756827044003,-439.06826943,0.0001742,7]
[383043824,1756827044014,-975.0,0.00017454,2]
[383043825,1756827044027,-632.0,0.00017454,2]
[383043826,1756827044039,-2153.0,0.00017454,2]
[383043827,1756827044049,-409.0,0.00017454,2]
[383043828,1756827044059,-409.0,0.00017454,2]
[383043829,1756827044069,-600.0,0.00017511,2]
[383043830,1756827044080,-216.95330793,0.00017534,2]
[383043831,1756827044091,-500.0,0.00017534,2]
[383043832,1756827044103,-541.42,0.00017534,2]
[383043833,1756827044113,-827.76,0.00017534,2]
[383043834,1756827044124,-736.65,0.00017534,2]
[383043835,1756827044135,-480.0,0.00017534,2]
[383043836,1756827044146,-577.95,0.00017534,2]
[383043837,1756827044157,-840.81,0.00017534,2]
[383043838,1756827044168,-480.0,0.00017534,2]
[383043839,1756827044179,-480.0,0.00017534,2]
[383043840,1756827044191,-480.0,0.00017534,2]
[383043841,1756827044202,-480.0,0.00017534,2]
[383043842,1756827044214,-1000.0,0.00017534,2]
[383043843,1756827044227,-2098.79470144,0.000176,2]
[383043844,1756827044251,-151.0,0.000176,2]
[383043845,1756827044273,-151.0,0.000176,2]
[383043846,1756827044285,-151.0,0.000176,2]
[383043847,1756827044296,-3500.0,0.0001776,2]
[383043848,1756827044307,-3500.0,0.0001776,2]
[383043849,1756827044319,-3500.0,0.0001776,2]
[383043850,1756827044330,-500.0,0.00017808,2]
[383043851,1756827044342,-541.42,0.00017808,2]
[383043852,1756827044355,-827.76,0.00017808,2]
[383043853,1756827044369,-736.65,0.00017808,2]
[383043854,1756827044380,-480.0,0.00017808,2]
[383043855,1756827044391,-577.95,0.00017808,2]
[383043856,1756827044404,-840.81,0.00017808,2]
[383043857,1756827044416,-331.14121604,0.00017808,2]
[383043858,1756827044428,-480.0,0.00017808,2]
[383043859,1756827044439,-480.0,0.00017808,2]
[383043860,1756827044452,-480.0,0.00017808,2]
[383043861,1756827044462,-156.8589908,0.0001787,2]
[383043862,1756827044474,-3000.0,0.00017876,2]
[383043863,1756827044485,-460.0,0.00017931,2]
[383043864,1756827044495,-1673.99,0.0001797,2]
[383043865,1756827044506,-500.0,0.00017973,2]
[383043866,1756827044516,-500.0,0.00017973,2]
[383043867,1756827044527,-500.0,0.00017973,2]
[383043868,1756827044538,-500.0,0.00017973,2]
[383043869,1756827044551,-500.0,0.00017973,2]
[383043870,1756827044562,-500.0,0.00017973,2]
[383043871,1756827044573,-500.0,0.00017973,2]
[383043872,1756827044585,-500.0,0.00017973,2]
[383043873,1756827044596,-500.0,0.00017973,2]
[383043874,1756827044608,-114.0994341,0.00017973,2]
[383043875,1756827044759,-151.0,0.00014794,2]
[383043876,1756827044769,-151.0,0.00015568,2]
[383043877,1756827044780,-151.0,0.00016164,2]
[383043878,1756827044791,-185.985098,0.00016358,2]
[383043879,1756827044803,-237.28685296,0.00017973,2]
[383043880,1756827044818,-148.61371294,0.00017973,2]
[383043881,1756827044830,-500.0,0.00017973,2]
[383043882,1756827044842,-500.0,0.00017973,2]
[383043883,1756827044853,-447.18628706,0.00017973,2]
[383043884,1756827044865,-52.81371294,0.00017973,2]
[383043885,1756827044875,-500.0,0.00017973,2]
[383043886,1756827044885,-500.0,0.00017973,2]
[383043887,1756827044896,-201.04114597,0.00017973,2]
[383043888,1756827044908,-500.0,0.00017973,2]
[383043889,1756827044919,-500.0,0.00017973,2]
[383043890,1756827044930,-501.20535616,0.00017973,2]
[383043891,1756827044942,-500.0,0.00017973,2]
[383043892,1756827044953,-542.05552218,0.00017973,2]
[383043893,1756827044965,-500.0,0.00017973,2]
[383043894,1756827044976,-84.66048809,0.00017973,2]
[383043895,1756827044988,-503.77106316,0.00017973,2]
[383043896,1756827044999,-500.0,0.00017973,2]
[383043897,1756827045009,-500.0,0.00017973,2]
[383043898,1756827045020,-500.0,0.00017973,2]
[383043899,1756827045031,-500.0,0.00017973,2]
[383043900,1756827045041,-138.51520628,0.00017973,2]
[383043901,1756827045185,-361.48479372,0.00017973,2]
[383043902,1756827045196,-500.0,0.00017973,2]
[383043903,1756827045206,-315.25433223,0.00017973,2]
[383043904,1756827045295,-480.0,0.00013698,2]
[383043905,1756827045308,-480.0,0.0001452,2]
[383043906,1756827045319,-200.73471983,0.00014763,2]
[383043907,1756827045330,-480.0,0.00014794,2]
[383043908,1756827045340,-480.0,0.00015068,2]
[383043909,1756827045352,-103.51296548,0.00015342,2]
[383043910,1756827045369,-324.675924,0.00015342,2]
[383043929,1756827046756,-23122.33310363,0.00014145,2]
[383043930,1756827054881,193.34948864,0.00027397,120]
[383043931,1756827111729,154.482071,0.000245,30]
[383043933,1756827628514,2245.00111856,0.0001444,4]
[383043934,1756827636899,156.5413715,0.0001444,4]
[383043936,1756827979886,258.0607715,0.00012766,2]
[383043938,1756828047097,-2017.39879405,0.00013077,2]
[383043940,1756828089956,22539.5692385,0.00012697,2]
[383043941,1756828150096,-218.12181016,0.00013077,2]
[383043996,1756828232886,-126.19523049,0.00013077,2]
[383043998,1756828232896,-1200.0,0.00013695,2]
[383044000,1756828232906,-1200.0,0.00013696,2]
[383044002,1756828232916,-300.0,0.00013696,2]
[383044004,1756828232925,-300.0,0.00013696,2]
[383044006,1756828232935,-300.0,0.00013696,2]
[383044008,1756828232944,-500.0,0.00013697,2]
[383044010,1756828232954,-500.0,0.00013697,2]
[383044012,1756828232965,-500.0,0.00013697,2]
[383044014,1756828232975,-500.0,0.00013697,2]
[383044016,1756828232984,-500.0,0.00013697,2]
[383044018,1756828232994,-500.0,0.00013697,2]
[383044020,1756828233006,-500.0,0.00013697,2]
[383044022,1756828233016,-500.0,0.00013697,2]
[383044024,1756828233025,-500.0,0.00013697,2]
[383044026,1756828233035,-500.0,0.00013697,2]
[383044028,1756828233045,-500.0,0.00013697,2]
[383044030,1756828233055,-500.0,0.00013697,2]
[383044032,1756828233065,-500.0,0.00013697,2]
[383044034,1756828233075,-500.0,0.00013697,2]
[383044036,1756828233085,-500.0,0.00013697,2]
[383044038,1756828233095,-500.0,0.00013697,2]
[383044040,1756828233106,-500.0,0.00013697,2]
[383044042,1756828233115,-500.0,0.00013697,2]
[383044044,1756828233125,-397.57817419,0.00013697,2]
[383044046,1756828233135,-501.81677426,0.00013697,2]
[383044048,1756828233146,-500.0,0.00013697,2]
[383044050,1756828233155,-638.43557962,0.00013697,2]
[383044052,1756828233165,-480.0,0.00013698,2]
[383044054,1756828233176,-480.0,0.00013698,2]
[383044056,1756828233185,-480.0,0.00013698,2]
[383044058,1756828233195,-480.0,0.00013698,2]
[383044060,1756828233205,-480.0,0.00013698,2]
[383044062,1756828233214,-480.0,0.00013698,2]
[383044063,1756828233224,-480.0,0.00013698,2]
[383044064,1756828233234,-480.0,0.00013698,2]
[383044065,1756828233243,-480.0,0.00013698,2]
[383044066,1756828233257,-480.0,0.00013698,2]
[383044067,1756828233266,-480.0,0.00013698,2]
[383044068,1756828233277,-480.0,0.00013698,2]
[383044069,1756828233286,-38.57358314,0.00013698,2]
[383044071,1756828233303,-441.42641686,0.00013698,2]
[383044073,1756828233313,-480.0,0.00013698,2]
[383044074,1756828233324,-480.0,0.00013698,2]
[383044075,1756828233334,-463.44300638,0.00013698,2]
[383044081,1756828238548,-16.55699362,0.00013698,2]
[383044082,1756828238558,-521.75,0.00013698,2]
[383044083,1756828238568,-480.0,0.00013698,2]
[383044084,1756828238577,-480.0,0.00013698,2]
[383044085,1756828238587,-480.0,0.00013698,2]
[383044086,1756828238596,-480.0,0.00013698,2]
[383044087,1756828238605,-480.0,0.00013698,2]
[383044088,1756828238615,-480.0,0.00013698,2]
[383044089,1756828238624,-480.0,0.00013698,2]
[383044090,1756828238634,-480.0,0.00013698,2]
[383044091,1756828238643,-480.0,0.00013698,2]
[383044092,1756828238653,-491.56736186,0.00013698,2]
[383044093,1756828238665,-480.0,0.00013698,2]
[383044094,1756828238675,-480.0,0.00013698,2]
[383044096,1756828238684,-481.38064116,0.00013698,2]
[383044097,1756828238694,-480.0,0.00013698,2]
[383044098,1756828238705,-480.0,0.00013698,2]
[383044099,1756828238715,-480.0,0.00013698,2]
[383044100,1756828238725,-590.45,0.00013698,2]
[383044101,1756828238736,-480.0,0.00013698,2]
[383044102,1756828238746,-480.0,0.00013698,2]
[383044103,1756828238758,-480.0,0.00013698,2]
[383044104,1756828238767,-480.0,0.00013698,2]
[383044105,1756828238777,-195.09837337,0.00013698,2]
[383044106,1756828238788,-555.74700082,0.00013698,2]
[383044107,1756828238798,-480.0,0.00013698,2]
[383044108,1756828238810,-480.0,0.00013698,2]
[383044109,1756828238820,-480.0,0.00013698,2]
[383044110,1756828238830,-480.0,0.00013698,2]
[383044111,1756828238839,-480.0,0.00013698,2]
[383044112,1756828238849,-480.0,0.00013698,2]
[383044113,1756828238859,-21.64869135,0.00013698,2]
[383044114,1756828238871,-458.35130865,0.00013698,2]
[383044115,1756828238881,-480.0,0.00013698,2]
[383044116,1756828238892,-480.0,0.00013698,2]
[383044117,1756828238902,-480.0,0.00013698,2]
[383044118,1756828238912,-480.0,0.00013698,2]
[383044119,1756828238921,-574.78,0.00013698,2]
[383044120,1756828238931,-480.0,0.00013698,2]
[383044121,1756828238941,-480.0,0.00013698,2]
[383044122,1756828238951,-480.0,0.00013698,2]
[383044123,1756828238961,-480.0,0.00013698,2]
[383044124,1756828238972,-480.0,0.00013698,2]
[383044125,1756828238982,-542.28,0.00013698,2]
[383044126,1756828238992,-480.0,0.00013698,2]
[383044127,1756828239005,-480.0,0.00013698,2]
[383044128,1756828239015,-480.0,0.00013698,2]
[383044129,1756828239025,-480.0,0.00013698,2]
[383044130,1756828239035,-480.0,0.00013698,2]
[383044131,1756828239045,-480.0,0.00013698,2]
[383044132,1756828239055,-522.7,0.00013698,2]
[383044133,1756828239066,-480.0,0.00013698,2]
[383044134,1756828239078,-624.48,0.00013698,2]
[383044135,1756828239088,-559.28,0.00013698,2]
[383044136,1756828239098,-480.0,0.00013698,2]
[383044137,1756828239108,-480.0,0.00013698,2]
[383044138,1756828239120,-480.0,0.00013698,2]
[383044139,1756828239130,-480.0,0.00013698,2]
[383044140,1756828239139,-480.0,0.00013698,2]
[383044141,1756828239149,-480.0,0.00013698,2]
[383044142,1756828239159,-480.0,0.00013698,2]
[383044143,1756828239168,-480.0,0.00013698,2]
[383044144,1756828239179,-480.0,0.00013698,2]
[383044145,1756828239188,-480.0,0.00013698,2]
[383044146,1756828239198,-480.0,0.00013698,2]
[383044147,1756828239208,-480.0,0.00013698,2]
[383044148,1756828239217,-480.0,0.00013698,2]
[383044149,1756828239227,-480.0,0.00013698,2]
[383044150,1756828239237,-480.0,0.00013698,2]
[383044151,1756828239247,-480.0,0.00013698,2]
[383044152,1756828239258,-480.0,0.00013698,2]
[383044153,1756828239267,-480.0,0.00013698,2]
[383044154,1756828239277,-480.0,0.00013698,2]
[383044155,1756828239287,-480.0,0.00013698,2]
[383044156,1756828239297,-480.0,0.00013698,2]
[383044157,1756828239306,-480.0,0.00013698,2]
[383044158,1756828239316,-480.0,0.00013698,2]
[383044159,1756828239326,-480.0,0.00013698,2]
[383044160,1756828239335,-480.0,0.00013698,2]
[383044161,1756828239345,-480.0,0.00013698,2]
[383044162,1756828239354,-480.0,0.00013698,2]
[383044163,1756828239363,-480.0,0.00013698,2]
[383044164,1756828239373,-480.0,0.00013698,2]
[383044165,1756828239382,-480.0,0.00013698,2]
[383044166,1756828239392,-547.67707713,0.00013698,2]
[383044167,1756828239402,-480.0,0.00013698,2]
[383044168,1756828239412,-480.0,0.00013698,2]
[383044169,1756828239421,-480.0,0.00013698,2]
[383044170,1756828239430,-480.0,0.00013698,2]
[383044171,1756828239440,-480.0,0.00013698,2]
[383044172,1756828239449,-480.0,0.00013698,2]
[383044173,1756828239459,-479.999999,0.00013698,2]
[383044174,1756828239468,-480.0,0.00013698,2]
[383044175,1756828239478,-480.0,0.00013698,2]
[383044176,1756828239487,-480.0,0.00013698,2]
[383044177,1756828239497,-480.0,0.00013698,2]
[383044178,1756828239507,-480.0,0.00013698,2]
[383044179,1756828239517,-489.11,0.00013698,2]
[383044180,1756828239527,-480.0,0.00013698,2]
[383044181,1756828239538,-480.0,0.00013698,2]
[383044182,1756828239548,-480.0,0.00013698,2]
[383044183,1756828239558,-480.0,0.00013698,2]
[383044184,1756828239567,-480.0,0.00013698,2]
[383044185,1756828239577,-480.0,0.00013698,2]
[383044186,1756828239586,-480.0,0.00013698,2]
[383044187,1756828239596,-480.0,0.00013698,2]
[383044188,1756828239606,-480.0,0.00013698,2]
[383044189,1756828239616,-480.0,0.00013698,2]
[383044190,1756828239625,-480.0,0.00013698,2]
[383044191,1756828239635,-480.0,0.00013698,2]
[383044192,1756828239645,-480.0,0.00013698,2]
[383044193,1756828239656,-480.0,0.00013698,2]
[383044194,1756828239670,-526.88,0.00013698,2]
[383044195,1756828239679,-480.0,0.00013698,2]
[383044196,1756828239689,-480.0,0.00013698,2]
[383044197,1756828239699,-617.52,0.00013698,2]
[383044198,1756828239708,-480.0,0.00013698,2]
[383044199,1756828239718,-480.0,0.00013698,2]
[383044200,1756828239728,-548.08,0.00013698,2]
[383044201,1756828239738,-480.0,0.00013698,2]
[383044202,1756828239762,-603.89,0.00013698,2]
[383044203,1756828239773,-480.0,0.00013698,2]
[383044204,1756828239783,-480.0,0.00013698,2]
[383044205,1756828239793,-613.27,0.00013698,2]
[383044206,1756828239804,-480.0,0.00013698,2]
[383044207,1756828239815,-480.0,0.00013698,2]
[383044208,1756828239824,-480.0,0.00013698,2]
[383044209,1756828239833,-480.0,0.00013698,2]
[383044210,1756828239842,-480.0,0.00013698,2]
[383044211,1756828239851,-480.0,0.00013698,2]
[383044212,1756828239862,-480.0,0.00013698,2]
[383044213,1756828239872,-480.0,0.00013698,2]
[383044214,1756828239882,-480.0,0.00013698,2]
[383044215,1756828239892,-480.0,0.00013698,2]
[383044216,1756828239902,-480.0,0.00013698,2]
[383044217,1756828239912,-480.0,0.00013698,2]
[383044218,1756828239923,-480.0,0.00013698,2]
[383044219,1756828239934,-480.0,0.00013698,2]
[383044220,1756828239944,-480.0,0.00013698,2]
[383044221,1756828239954,-480.0,0.00013698,2]
[383044222,1756828239965,-480.0,0.00013698,2]
[383044223,1756828239975,-480.0,0.00013698,2]
[383044224,1756828239986,-480.0,0.00013698,2]
[383044225,1756828239996,-287.38560881,0.00013698,2]
[383044226,1756828240008,-480.0,0.00013698,2]
[383044228,1756828240019,-480.0,0.00013698,2]
[383044229,1756828240029,-480.0,0.00013698,2]
[383044230,1756828240039,-480.0,0.00013698,2]
[383044231,1756828240049,-480.0,0.00013698,2]
[383044232,1756828240059,-454.67309594,0.00013698,2]
[383044233,1756828240070,-480.0,0.00013698,2]
[383044234,1756828240079,-480.0,0.00013698,2]
[383044235,1756828240089,-480.0,0.00013698,2]
[383044236,1756828240099,-480.0,0.00013698,2]
[383044237,1756828240109,-480.0,0.00013698,2]
[383044238,1756828240120,-201.64979696,0.00013698,2]
[383044239,1756828240131,-480.0,0.00013698,2]
[383044240,1756828240141,-480.0,0.00013698,2]
[383044242,1756828240151,-480.0,0.00013698,2]
[383044243,1756828240161,-480.0,0.00013698,2]
[383044244,1756828240171,-480.0,0.00013698,2]
[383044245,1756828240181,-480.0,0.00013698,2]
[383044246,1756828240191,-480.0,0.00013698,2]
[383044247,1756828240201,-480.0,0.00013698,2]
[383044248,1756828240211,-480.0,0.00013698,2]
[383044249,1756828240221,-480.0,0.00013698,2]
[383044250,1756828240232,-480.0,0.00013698,2]
[383044251,1756828240242,-480.0,0.00013698,2]
[383044252,1756828240253,-480.0,0.00013698,2]
[383044254,1756828240263,-480.0,0.00013698,2]
[383044256,1756828240273,-480.0,0.00013698,2]
[383044258,1756828240282,-480.0,0.00013698,2]
[383044260,1756828240292,-480.0,0.00013698,2]
[383044262,1756828240302,-480.0,0.00013698,2]
[383044264,1756828240312,-504.19,0.00013698,2]
[383044266,1756828240321,-480.0,0.00013698,2]
[383044268,1756828240332,-480.0,0.00013698,2]
[383044270,1756828240341,-480.0,0.00013698,2]
[383044272,1756828240351,-480.0,0.00013698,2]
[383044274,1756828240361,-480.0,0.00013698,2]
[383044276,1756828240371,-480.0,0.00013698,2]
[383044278,1756828240380,-527.63,0.00013698,2]
[383044280,1756828240390,-480.0,0.00013698,2]
[383044282,1756828240400,-480.0,0.00013698,2]
[383044284,1756828240410,-480.0,0.00013698,2]
[383044286,1756828240419,-480.0,0.00013698,2]
[383044288,1756828240429,-480.0,0.00013698,2]
[383044290,1756828240439,-480.0,0.00013698,2]
[383044292,1756828240449,-711.668192,0.00013699,2]
[383044294,1756828240459,-300.0,0.00013971,2]
[383044296,1756828240469,-300.0,0.00013971,2]
[383044298,1756828240479,-300.0,0.00013971,2]
[383044300,1756828240488,-300.0,0.00013971,2]
[383044302,1756828240499,-300.0,0.00013971,2]
[383044303,1756828240510,-300.0,0.00013971,2]
[383044304,1756828240520,-300.0,0.00013971,2]
[383044305,1756828240530,-300.0,0.00013971,2]
[383044307,1756828240540,-300.0,0.00013971,2]
[383044309,1756828240551,-300.0,0.00013971,2]
[383044311,1756828240560,-300.0,0.00013971,2]
[383044313,1756828240570,-300.0,0.00013971,2]
[383044315,1756828240580,-300.0,0.00013971,2]
[383044317,1756828240590,-300.0,0.00013971,2]
[383044319,1756828240600,-300.0,0.00013971,2]
[383044321,1756828240610,-600.0,0.00013971,2]
[383044323,1756828240620,-480.0,0.00013972,2]
[383044325,1756828240630,-480.0,0.00013972,2]
[383044327,1756828240640,-207.1,0.00013972,2]
[383044329,1756828240650,-480.0,0.00013972,2]
[383044332,1756828240664,-480.0,0.00013972,2]
[383044335,1756828240673,-480.0,0.00013972,2]
[383044337,1756828240682,-480.0,0.00013972,2]
[383044340,1756828240692,-480.0,0.00013972,2]
[383044343,1756828240703,-480.0,0.00013972,2]
[383044346,1756828240712,-480.0,0.00013972,2]
[383044349,1756828240721,-480.0,0.00013972,2]
[383044351,1756828240730,-480.0,0.00013972,2]
[383044353,1756828240742,-556.21,0.00013972,2]
[383044355,1756828240752,-408.43,0.00013972,2]
[383044357,1756828240761,-591.48,0.00013972,2]
[383044358,1756828240771,-588.24,0.00013972,2]
[383044359,1756828240781,-480.0,0.00013972,2]
[383044360,1756828240790,-480.0,0.00013972,2]
[383044361,1756828240799,-480.0,0.00013972,2]
[383044362,1756828240809,-480.0,0.00013972,2]
[383044363,1756828240818,-480.0,0.00013972,2]
[383044364,1756828240828,-480.0,0.00013972,2]
[383044365,1756828240838,-480.0,0.00013972,2]
[383044366,1756828240850,-480.0,0.00013972,2]
[383044367,1756828240860,-480.0,0.00013972,2]
[383044368,1756828240870,-480.0,0.00013972,2]
[383044369,1756828240879,-584.41,0.00013972,2]
[383044370,1756828240889,-480.0,0.00013972,2]
[383044371,1756828240898,-480.0,0.00013972,2]
[383044372,1756828240908,-480.0,0.00013972,2]
[383044373,1756828240917,-480.0,0.00013972,2]
[383044374,1756828240928,-480.0,0.00013972,2]
[383044375,1756828240938,-480.0,0.00013972,2]
[383044376,1756828240948,-489.11,0.00013972,2]
[383044377,1756828240958,-480.0,0.00013972,2]
[383044378,1756828240968,-480.0,0.00013972,2]
[383044379,1756828240978,-480.0,0.00013972,2]
[383044380,1756828240989,-480.0,0.00013972,2]
[383044381,1756828241000,-487.77,0.00013972,2]
[383044382,1756828241010,-577.04675816,0.00013972,2]
[383044383,1756828241020,-480.0,0.00013972,2]
[383044384,1756828241030,-480.0,0.00013972,2]
[383044385,1756828241040,-526.88,0.00013972,2]
[383044386,1756828241049,-480.0,0.00013972,2]
[383044387,1756828241059,-368.31,0.00013972,2]
[383044388,1756828241069,-480.0,0.00013972,2]
[383044389,1756828241079,-548.08,0.00013972,2]
[383044390,1756828241087,-338.38,0.00013972,2]
[383044391,1756828241096,-176.8,0.00013972,2]
[383044392,1756828241106,-480.0,0.00013972,2]
[383044393,1756828241115,-480.0,0.00013972,2]
[383044394,1756828241125,-480.0,0.00013972,2]
[383044395,1756828241135,-161.26,0.00013972,2]
[383044396,1756828241144,-222.06,0.00013972,2]
[383044397,1756828241154,-480.0,0.00013972,2]
[383044398,1756828241164,-480.0,0.00013972,2]
[383044399,1756828241174,-512.87,0.00013972,2]
[383044400,1756828241184,-480.0,0.00013972,2]
[383044401,1756828241194,-480.0,0.00013972,2]
[383044402,1756828241203,-480.0,0.00013972,2]
[383044403,1756828241213,-480.0,0.00013972,2]
[383044404,1756828241222,-480.0,0.00013972,2]
[383044405,1756828241232,-480.0,0.00013972,2]